bitfinex/quotes_SOLUSD_20241008
["timestamp","ask_amount","ask_price","bid_price","bid_amount"]
[1728374926787,6.9867,143.13,143.09,1.39757236]
[1728374927482,6.9867,143.13,143.09,6.9885]
[1728374927785,6.9871,143.12,143.08,6.9889]
[1728374929891,20.12549,143.15,143.09,1.39757997]
[1728374930188,26.9869,143.13,143.08,17.4723]
[1728374930368,26.9869,143.13,143.08,24.4613]
[1728374931494,20.12549,143.15,143.08,24.4613]
[1728374931677,6.9872,143.12,143.08,24.4613]
[1728374932992,6.9872,143.12,143.09,1.39757869]
[1728374934289,6.9876,143.11,143.07,6.9894]
[1728374935302,37.59049,143.15,143.04,15.4342]
[1728374935303,0.12549,143.14,143.04,15.4342]
[1728374935498,6.9894,143.08,143.04,6.9906]
[1728374935893,20.12549,143.12,143.05,8.38834773]
[1728374936078,6.9882,143.1,143.06,6.99]
[1728374936892,6.9882,143.1,143.05,1.39794773]
[1728374937098,6.9882,143.1,143.05,8.38834773]
[1728374938484,6.9887,143.09,143.05,6.9904]
[1728374938997,6.9891,143.08,143.04,17.4764]
[1728374939195,6.9891,143.08,143.05,1.39792746]
[1728374939697,6.9891,143.08,143.04,24.4674]
[1728374940104,6.9896,143.07,143.03,6.9914]
[1728374940392,6.9901,143.06,143.01,39.8364]
[1728374940574,6.9907,143.05,143.01,39.8364]
[1728374941289,6.9907,143.05,143.02,1.39822972]
[1728374941692,0.12549,143.1,143.02,1.39822972]
[1728374941894,6.9892,143.08,143.04,6.9909]
[1728374942105,6.9892,143.08,143.04,8.38888326]
[1728374942479,6.9897,143.07,143.03,24.4698]
[1728374942987,20.0,143.1,143.04,8.38892199]
[1728374943193,6.989,143.09,143.04,8.38892199]
[1728374943789,26.9882,143.1,143.05,6.9904]
[1728374944502,6.9882,143.1,143.06,1.39781096]
[1728374947807,7.23560886,143.13,143.06,1.39781096]
[1728374947994,26.9875,143.12,143.07,6.9891]
[1728374948305,6.9875,143.12,143.08,1.39763367]
[1728374949785,6.9867,143.13,143.09,6.9885]
[1728374950089,6.9879,143.11,143.07,17.4734]
[1728374950306,6.9879,143.11,143.07,18.87105141]
[1728374950685,6.9879,143.11,143.07,25.86025141]
[1728374950912,6.9879,143.11,143.07,24.4626]
[1728374951206,20.0,143.14,143.08,1.3975818]
[1728374951386,6.9872,143.12,143.08,8.3865818]
[1728374951802,6.9872,143.12,143.08,6.989]
[1728374952010,6.9867,143.13,143.09,1.39752104]
[1728374953106,6.9867,143.13,143.08,6.989]
[1728374954712,6.9871,143.12,143.08,6.989]
[1728374956787,6.9868,143.13,143.08,6.989]
[1728374957014,26.9862,143.14,143.1,6.9879]
[1728374957189,20.0,143.14,143.09,17.471]
[1728374957390,6.9868,143.13,143.09,24.4595]
[1728374957911,20.0,143.14,143.09,17.471]
[1728374958113,6.9866,143.13,143.09,24.4595]
[1728374958885,6.9866,143.13,143.1,1.39745454]
[1728374959498,6.9866,143.13,143.09,24.4595]
[1728374960102,26.9863,143.14,143.09,24.4595]
[1728374960411,6.9866,143.13,143.09,24.4595]
[1728374961907,20.0,143.14,143.09,24.4595]
[1728374962219,6.9857,143.15,143.11,6.9875]
[1728374963521,20.0,143.17,143.12,1.39738387]
[1728374963695,6.984,143.19,143.15,6.9855]
[1728374964397,15.7526,143.22,143.14,1.39704585]
[1728374964709,6.9832,143.2,143.16,6.9851]
[1728374965020,6.9838,143.19,143.13,17.4657]
[1728374965192,6.9844,143.18,143.13,24.4522]
[1728374965394,6.9844,143.18,143.13,25.84928906]
[1728374965719,6.9844,143.18,143.13,24.4522]
[1728374966619,6.9844,143.18,143.14,1.397089]
[1728374966817,6.9844,143.18,143.14,8.382989]
[1728374967845,6.9838,143.19,143.14,8.382989]
[1728374968121,6.9838,143.19,143.15,6.9856]
[1728374968304,6.9838,143.19,143.14,6.986]
[1728374968501,43.902374,143.21,143.15,18.85997097]
[1728374968706,43.902374,143.21,143.15,17.463]
[1728374968900,43.902374,143.21,143.14,1.39700159]
[1728374969216,6.984,143.19,143.14,24.451]
[1728374969719,6.9833,143.2,143.16,6.985]
[1728374970826,6.9837,143.19,143.14,17.465]
[1728374971115,43.902374,143.21,143.14,17.465]
[1728374971928,43.902374,143.21,143.14,24.4508]
[1728374971929,6.9844,143.18,143.14,24.4508]
[1728374972403,6.9844,143.18,143.14,17.465]
[1728374972607,6.9852,143.16,143.11,24.456]
[1728374973713,6.9852,143.16,143.12,6.987]
[1728374975427,6.984,143.19,143.14,6.986]
[1728374976729,7.22747409,143.2,143.14,6.986]
[1728374976908,6.9842,143.18,143.14,6.986]
[1728374977725,23.776884,143.19,143.13,17.4662]
[1728374977909,6.985,143.17,143.13,24.4527]
[1728374978109,6.9843,143.18,143.14,6.9861]
[1728374978610,26.9838,143.19,143.14,6.9861]
[1728374979327,20.0,143.2,143.13,17.4662]
[1728374979518,6.9848,143.17,143.13,24.4527]
[1728374980240,6.9848,143.17,143.13,17.4662]
[1728374980602,20.0,143.18,143.1,6.2175]
[1728374980807,6.9856,143.16,143.12,6.987]
[1728374981923,6.9848,143.17,143.12,6.987]
[1728374982120,6.9848,143.17,143.13,6.9866]
[1728374982317,6.9848,143.17,143.1,23.687]
[1728374982519,6.9848,143.17,143.12,6.9869]
[1728374988937,6.9842,143.18,143.12,17.4675]
[1728374989315,20.0,143.2,143.14,6.9858]
[1728374989614,6.984,143.19,143.14,6.9858]
[1728374990128,6.984,143.19,143.15,8.38266446]
[1728374990320,14.20973472,143.21,143.17,6.9846]
[1728374990522,15.7526,143.22,143.17,6.9846]
[1728374990729,22.7349,143.22,143.17,1.39676678]
[1728374990915,14.20612744,143.23,143.19,6.9837]
[1728374991114,6.9818,143.23,143.19,6.9837]
[1728374991526,6.9823,143.22,143.18,24.4437]
[1728374993935,6.9831,143.21,143.17,6.9845]
[1728374994626,6.9826,143.22,143.17,6.9845]
[1728374995007,6.9826,143.22,143.15,37.13150618]
[1728374995212,6.9826,143.22,143.18,6.9841]
[1728374995917,6.9826,143.22,143.18,8.38074374]
[1728374996132,6.9826,143.22,143.18,6.9841]
[1728374996311,6.9826,143.22,143.18,8.38076312]
[1728374996813,20.0,143.23,143.18,1.39666312]
[1728374997014,20.0,143.23,143.19,6.9833]
[1728374997015,6.9819,143.23,143.19,6.9833]
[1728374997226,23.902374,143.24,143.2,6.9831]
[1728374997514,30.883874,143.24,143.2,6.9831]
[1728374997738,30.883874,143.24,143.19,17.4586]
[1728374997916,30.883874,143.24,143.19,24.4422]
[1728374998433,6.9819,143.23,143.19,24.4422]
[1728374998612,6.9819,143.23,143.19,17.4586]
[1728375000348,6.9819,143.23,143.19,18.85522263]
[1728375000507,26.9813,143.24,143.2,6.9831]
[1728375001631,6.9818,143.23,143.19,24.4422]
[1728375004435,20.0,143.25,143.19,17.4586]
[1728375004737,6.9822,143.22,143.19,17.4586]
[1728375005826,6.9818,143.23,143.19,24.4422]
[1728375006026,6.9814,143.24,143.19,25.83879393]
[1728375007032,26.9809,143.25,143.19,34.64919393]
[1728375007934,14.20320806,143.26,143.21,17.4566]
[1728375008141,7.22280806,143.26,143.23,6.9817]
[1728375008448,6.9799,143.27,143.23,6.9817]
[1728375008634,6.9794,143.28,143.23,6.9817]
[1728375008816,6.9794,143.28,143.22,1.39627639]
[1728375009014,14.20156715,143.29,143.24,6.9811]
[1728375009212,15.0664,143.32,143.25,8.37657331]
[1728375009435,6.9785,143.3,143.25,8.37657331]
[1728375009944,6.979,143.29,143.25,6.9805]
[1728375013540,6.979,143.29,143.26,1.39593725]
[1728375013746,6.9784,143.3,143.26,1.39593725]
[1728375014125,6.9784,143.3,143.26,6.9802]
[1728375017150,3.28720785,143.3,143.26,6.9802]
[1728375017328,20.0,143.31,143.26,6.9802]
[1728375019036,6.9784,143.3,143.26,6.9802]
[1728375019346,6.9784,143.3,143.24,16.2603]
[1728375019531,6.9784,143.3,143.25,6.9806]
[1728375019849,6.9784,143.3,143.25,8.37645522]
[1728375020235,20.0,143.32,143.25,1.39585522]
[1728375020536,6.978,143.31,143.27,6.9797]
[1728375020923,6.9775,143.32,143.28,8.37465791]
[1728375023050,6.977,143.33,143.28,8.37465791]
[1728375023230,6.977,143.33,143.29,6.9788]
[1728375023842,6.977,143.33,143.28,6.9791]
[1728375024627,23.902374,143.35,143.27,23.4539]
[1728375024827,6.9789,143.29,143.27,6.0049]
[1728375025364,6.9785,143.3,143.27,6.0049]
[1728375025846,6.9789,143.29,143.25,6.9806]
[1728375026562,6.9789,143.29,143.26,1.39586103]
[1728375026731,6.9785,143.3,143.26,1.39586103]
[1728375027448,6.9785,143.3,143.26,8.37596103]
[1728375027646,6.9785,143.3,143.26,6.9801]
[1728375027840,6.9785,143.3,143.27,1.39582895]
[1728375028050,6.9785,143.3,143.26,8.37592695]
[1728375028753,6.978,143.31,143.26,8.37592695]
[1728375029354,6.978,143.31,143.27,6.9797]
[1728375029541,6.978,143.31,143.28,1.39567959]
[1728375031331,6.9775,143.32,143.28,1.39567959]
[1728375031532,6.9775,143.32,143.28,6.9792]
[1728375033256,6.9775,143.32,143.27,6.9796]
[1728375033457,6.9779,143.31,143.27,6.9796]
[1728375033946,6.9775,143.32,143.28,8.37486829]
[1728375034151,6.977,143.33,143.29,6.9788]
[1728375034349,22.97336625,143.36,143.3,1.39552234]
[1728375034350,7.29286625,143.36,143.3,1.39552234]
[1728375034655,6.976,143.35,143.31,6.9778]
[1728375035558,6.976,143.35,143.32,1.39544021]
[1728375036655,6.976,143.35,143.31,1.39533845]
[1728375036837,6.976,143.35,143.31,6.9778]
[1728375037038,43.902374,143.37,143.3,17.4455]
[1728375037240,6.9769,143.33,143.3,17.4455]
[1728375037954,6.9769,143.33,143.29,15.0672]
[1728375038139,6.9775,143.32,143.29,15.0672]
[1728375039259,6.9769,143.33,143.29,23.44150001]
[1728375039661,17.4389,143.36,143.29,23.44150001]
[1728375039662,20.0,143.35,143.29,23.44150001]
[1728375039847,6.9765,143.34,143.29,23.44150001]
[1728375040254,6.976,143.35,143.3,6.978]
[1728375040455,6.976,143.35,143.31,1.39536904]
[1728375040842,0.12549,143.37,143.29,32.5139]
[1728375041065,6.9769,143.33,143.29,39.4927]
[1728375041861,6.9769,143.33,143.3,1.39550896]
[1728375042062,6.9769,143.33,143.29,39.4927]
[1728375047174,20.12549,143.35,143.29,15.0672]
[1728375047369,6.9772,143.33,143.29,15.0672]
[1728375047847,20.12549,143.35,143.29,15.0672]
[1728375048050,6.9775,143.32,143.29,15.0672]
[1728375049259,6.9787,143.3,143.26,17.45]
[1728375049471,6.9785,143.3,143.25,29.753]
[1728375049647,6.9785,143.3,143.26,8.37583467]
[1728375050460,17.4426,143.33,143.26,8.37583467]
[1728375050643,6.978,143.31,143.26,8.37583467]
[1728375051062,6.9775,143.32,143.27,17.4488]
[1728375051256,6.9775,143.32,143.28,1.39562499]
[1728375051962,6.9775,143.32,143.28,8.37452499]
[1728375052155,6.9775,143.32,143.28,6.9789]
[1728375054151,6.9775,143.32,143.28,8.3745439]
[1728375054748,6.9775,143.32,143.28,6.9789]
[1728375054949,6.9775,143.32,143.27,17.4488]
[1728375055150,20.0,143.33,143.27,17.4488]
[1728375055465,6.9784,143.3,143.27,17.4488]
[1728375055665,6.978,143.31,143.27,17.4488]
[1728375057073,20.0,143.33,143.27,17.4488]
[1728375057279,20.0,143.33,143.25,22.7726]
[1728375057451,6.9796,143.28,143.24,17.4526]
[1728375058368,6.9796,143.28,143.24,24.4337]
[1728375059981,41.346074,143.32,143.22,23.3892]
[1728375059982,20.12549,143.31,143.22,23.3892]
[1728375060273,6.9799,143.27,143.22,23.3892]
[1728375060482,17.57179,143.3,143.22,1.39614022]
[1728375060661,6.9813,143.24,143.2,6.9832]
[1728375060978,6.9813,143.24,143.18,38.7743]
[1728375060979,6.9814,143.24,143.18,38.7743]
[1728375061186,6.9814,143.24,143.2,6.9828]
[1728375061772,6.9814,143.24,143.21,1.39633585]
[1728375061970,6.9809,143.25,143.21,1.39633585]
[1728375062655,6.9809,143.25,143.2,6.9828]
[1728375062859,6.9809,143.25,143.21,1.39633642]
[1728375064461,6.9798,143.27,143.23,6.9817]
[1728375064777,6.9794,143.28,143.24,1.39611708]
[1728375065551,6.9789,143.29,143.25,6.9807]
[1728375066272,6.9797,143.28,143.24,17.4527]
[1728375066483,22.5957,143.32,143.19,20.25098]
[1728375066653,6.9804,143.26,143.22,6.9821]
[1728375067091,6.9794,143.28,143.23,8.37784468]
[1728375067465,6.9794,143.28,143.23,1.39614468]
[1728375067764,20.0,143.29,143.23,8.37774468]
[1728375067974,6.9801,143.27,143.23,6.9816]
[1728375068353,20.0,143.29,143.21,17.456]
[1728375068554,6.9812,143.24,143.19,20.0]
[1728375068782,6.9816,143.24,143.19,26.9833]
[1728375068971,23.902374,143.26,143.18,38.7743]
[1728375069157,6.9813,143.24,143.19,1.39647595]
[1728375069356,6.9813,143.24,143.2,6.983]
[1728375070066,6.9813,143.24,143.21,1.39637993]
[1728375070581,6.9822,143.23,143.18,45.7585]
[1728375070767,6.9822,143.23,143.19,6.9836]
[1728375070958,6.9822,143.23,143.18,38.7743]
[1728375071159,6.9823,143.22,143.18,45.7583]
[1728375071767,41.353874,143.26,143.18,38.7743]
[1728375071963,20.12549,143.25,143.16,6.9847]
[1728375072177,6.9833,143.2,143.16,6.9847]
[1728375072382,6.9828,143.21,143.17,1.39666391]
[1728375072690,20.0,143.25,143.18,6.9841]
[1728375072878,6.9819,143.23,143.19,1.39653216]
[1728375075082,6.9823,143.22,143.18,6.9841]
[1728375076183,6.9823,143.22,143.18,8.38067905]
[1728375077562,6.9823,143.22,143.18,6.9841]
[1728375078176,23.902374,143.24,143.17,17.4611]
[1728375078684,20.0,143.23,143.15,22.922]
[1728375078874,23.776884,143.22,143.15,22.922]
[1728375079274,6.984,143.19,143.15,6.9855]
[1728375079575,23.776884,143.22,143.15,6.9855]
[1728375079778,23.776884,143.22,143.16,1.39679365]
[1728375079984,6.9823,143.22,143.18,6.9841]
[1728375080184,6.9821,143.23,143.19,1.39658618]
[1728375080791,6.9822,143.22,143.19,1.39658618]
[1728375081775,20.0,143.26,143.19,1.39658618]
[1728375081776,6.9819,143.23,143.19,1.39658618]
[1728375083084,23.902374,143.25,143.18,6.9841]
[1728375083287,6.9823,143.22,143.18,6.9841]
[1728375085192,6.9823,143.22,143.19,1.39659338]
[1728375085493,6.9823,143.22,143.18,6.9841]
[1728375086388,36.4036,143.21,143.12,15.3935]
[1728375086600,36.4036,143.21,143.08,21.7885]
[1728375086601,0.25098,143.2,143.08,21.7885]
[1728375086894,6.9857,143.15,143.1,24.4575]
[1728375087391,6.9853,143.16,143.11,6.9875]
[1728375087593,17.4598,143.19,143.1,24.4575]
[1728375087594,6.9861,143.14,143.1,24.4575]
[1728375088389,17.4598,143.19,143.08,21.7885]
[1728375088390,6.9866,143.13,143.09,6.9885]
[1728375088593,6.9866,143.13,143.08,21.7885]
[1728375088773,6.9866,143.13,143.09,6.9886]
[1728375089491,6.9866,143.13,143.09,8.38603363]
[1728375089690,43.902374,143.16,143.09,8.38603363]
[1728375089993,6.9863,143.14,143.09,6.9886]
[1728375090184,6.9863,143.14,143.1,1.39743123]
[1728375090387,6.9863,143.14,143.1,8.38543123]
[1728375091277,6.9863,143.14,143.11,1.39737303]
[1728375091992,6.9863,143.14,143.1,6.988]
[1728375092293,6.9866,143.13,143.09,17.4709]
[1728375092477,20.0,143.16,143.09,17.4709]
[1728375092682,6.986,143.15,143.1,8.38526625]
[1728375093385,6.9862,143.14,143.1,8.38526625]
[1728375094889,6.9858,143.15,143.1,8.38526625]
[1728375095090,6.9858,143.15,143.11,6.9875]
[1728375095292,6.9858,143.15,143.12,1.39726745]
[1728375095491,26.9852,143.16,143.12,6.987]
[1728375095794,6.9852,143.16,143.13,1.39727467]
[1728375097093,6.9852,143.16,143.12,8.38417201]
[1728375097606,6.9848,143.17,143.12,8.38417201]
[1728375098176,6.9887,143.09,143.05,6.9901]
[1728375098483,6.9887,143.09,143.04,6.9907]
[1728375098484,6.9889,143.09,143.04,6.9907]
[1728375098686,6.9891,143.08,143.04,6.9907]
[1728375098895,6.9887,143.09,143.04,6.9907]
[1728375101481,6.987,143.13,143.08,6.9887]
[1728375101696,6.9872,143.12,143.08,6.9887]
[1728375101999,20.0,143.15,143.08,6.9887]
[1728375102514,20.0,143.15,143.09,1.39747355]
[1728375103076,6.9872,143.12,143.09,1.39747355]
[1728375103609,6.9872,143.12,143.08,6.9887]
[1728375103987,6.9872,143.12,143.09,1.39747455]
[1728375104303,6.9866,143.13,143.09,8.38587455]
[1728375104674,6.9866,143.13,143.09,1.39747455]
[1728375105809,6.9871,143.12,143.09,1.39747455]
[1728375106718,20.0,143.15,143.07,6.9895]
[1728375106719,6.988,143.11,143.07,6.9895]
[1728375106880,6.988,143.11,143.08,1.39752585]
[1728375107705,6.9872,143.12,143.08,1.39752585]
[1728375107909,6.9872,143.12,143.08,6.9889]
[1728375108205,6.9872,143.12,143.09,1.39746862]
[1728375108590,6.9872,143.12,143.08,6.9889]
[1728375109222,15.7085,143.11,143.08,6.9889]
[1728375109507,15.7085,143.11,142.94,0.844657]
[1728375109508,6.9941,142.98,142.94,0.844657]
[1728375109829,20.0,143.02,142.94,0.844657]
[1728375109830,6.9945,142.97,142.94,0.844657]
[1728375110010,6.9954,142.95,142.94,0.844657]
[1728375110309,26.9954,142.95,142.94,0.844657]
[1728375110491,6.998,142.9,142.85,6.3468]
[1728375110684,20.0,142.93,142.85,6.3468]
[1728375110887,6.9985,142.89,142.85,6.3468]
[1728375111392,23.776884,142.92,142.85,6.3468]
[1728375111697,6.9988,142.88,142.82,7.0017]
[1728375112012,6.9983,142.9,142.84,7.0003]
[1728375112215,6.9983,142.9,142.85,1.39960311]
[1728375112503,23.902374,142.94,142.85,8.39980311]
[1728375112504,6.9974,142.91,142.85,8.39980311]
[1728375112888,6.9968,142.93,142.86,8.39924434]
[1728375113090,6.9968,142.93,142.86,6.9997]
[1728375113509,6.9968,142.93,142.83,67.503]
[1728375113510,6.9968,142.93,142.87,6.9993]
[1728375113886,6.9969,142.92,142.87,6.9993]
[1728375114589,6.9964,142.93,142.88,6.9988]
[1728375116200,6.9964,142.93,142.89,1.39942622]
[1728375116606,6.9964,142.93,142.87,6.9993]
[1728375119795,7.28441323,142.96,142.88,1.39942499]
[1728375119999,6.9955,142.95,142.9,6.9978]
[1728375120394,6.9955,142.95,142.89,7.12379]
[1728375121095,24.76669624,143.0,142.89,6.9983]
[1728375121299,6.9959,142.94,142.89,6.9983]
[1728375122104,6.9959,142.94,142.9,6.2602]
[1728375123629,6.9965,142.93,142.9,6.2602]
[1728375124014,6.996,142.94,142.9,6.2602]
[1728375125914,7.28299624,143.0,142.9,6.2602]
[1728375126104,6.9966,142.93,142.9,6.2602]
[1728375127238,23.902374,142.97,142.88,15.8674]
[1728375127589,6.9973,142.92,142.88,15.8674]
[1728375127715,6.9974,142.91,142.88,15.8674]
[1728375128822,6.9963,142.94,142.89,1.39943794]
[1728375129331,6.9964,142.93,142.88,22.8659]
[1728375130132,6.9969,142.92,142.88,22.8659]
[1728375134063,20.0,142.95,142.88,15.8674]
[1728375134271,6.9977,142.91,142.87,17.4975]
[1728375136454,6.998,142.9,142.86,13.0516]
[1728375136796,6.9978,142.91,142.86,13.0517]
[1728375137068,6.9979,142.9,142.86,13.0517]
[1728375137253,6.9979,142.9,142.86,6.052]
[1728375137761,6.9984,142.89,142.86,6.052]
[1728375138344,23.776884,142.93,142.87,1.39964098]
[1728375138554,6.998,142.9,142.87,1.39964098]
[1728375139852,20.0,142.92,142.84,17.5012]
[1728375140095,6.9988,142.89,142.84,24.5018]
[1728375140251,17.4927,142.92,142.84,24.5018]
[1728375140252,43.776884,142.91,142.84,24.5018]
[1728375140484,6.999,142.88,142.84,24.5018]
[1728375141163,7.0,142.86,142.81,17.5056]
[1728375141338,7.0,142.86,142.81,24.5078]
[1728375142053,23.776884,142.89,142.81,24.5078]
[1728375142261,7.0004,142.85,142.81,24.5078]
[1728375142656,6.999,142.88,142.84,7.0007]
[1728375142862,0.12549,142.93,142.82,7.0016]
[1728375143065,6.9994,142.87,142.83,7.0012]
[1728375144307,6.9989,142.88,142.84,7.0006]
[1728375144462,17.4939,142.91,142.83,17.5027]
[1728375144655,6.9997,142.87,142.83,24.5039]
[1728375144859,23.776884,142.9,142.83,24.5039]
[1728375145066,6.999,142.88,142.83,24.5039]
[1728375145643,6.999,142.88,142.83,25.90367982]
[1728375145844,6.999,142.88,142.83,24.5039]
[1728375146167,24.77819754,142.91,142.83,17.5027]
[1728375146369,6.999,142.88,142.83,24.5038]
[1728375146570,6.9982,142.9,142.85,13.5531]
[1728375146759,41.392874,142.94,142.85,13.5531]
[1728375147070,48.6756984,142.94,142.85,13.5531]
[1728375147847,31.1851984,142.94,142.86,1.39962752]
[1728375148176,31.1851984,142.94,142.83,17.5027]
[1728375148177,6.999,142.88,142.83,17.5027]
[1728375148670,6.999,142.88,142.83,32.7576]
[1728375149050,6.999,142.88,142.84,7.0006]
[1728375149542,6.999,142.88,142.83,32.7576]
[1728375149748,6.999,142.88,142.84,7.0007]
[1728375151728,17.4929,142.92,142.85,8.39992518]
[1728375151923,6.9979,142.9,142.85,8.39992518]
[1728375153524,6.9984,142.89,142.85,7.0003]
[1728375154039,6.9984,142.89,142.86,1.39964277]
[1728375154815,23.776884,142.92,142.86,1.39964277]
[1728375155021,6.998,142.9,142.86,8.39944277]
[1728375155459,6.998,142.9,142.86,1.39964277]
[1728375156247,6.998,142.9,142.85,7.0002]
[1728375156742,6.9984,142.89,142.85,7.0002]
[1728375157069,23.776884,142.92,142.84,7.25168]
[1728375157219,23.776884,142.92,142.84,20.43145801]
[1728375157418,6.9979,142.9,142.85,6.9999]
[1728375159738,23.776884,142.92,142.85,6.9999]
[1728375160041,6.9984,142.89,142.85,6.9999]
[1728375160344,7.2828244,142.94,142.86,0.12549]
[1728375160540,6.9965,142.93,142.88,6.9984]
[1728375160746,6.997,142.92,142.88,6.9984]
[1728375161129,6.9977,142.91,142.87,25.89635858]
[1728375161650,32.5634,142.96,142.87,24.4968]
[1728375161651,6.997,142.92,142.87,24.4968]
[1728375162149,6.997,142.92,142.88,1.39945088]
[1728375164658,6.9979,142.9,142.86,6.9998]
[1728375164948,6.9984,142.89,142.85,7.0002]
[1728375165150,6.998,142.9,142.86,8.39898103]
[1728375165344,6.998,142.9,142.86,6.9994]
[1728375167124,23.776884,142.93,142.84,17.62669]
[1728375167341,6.998,142.9,142.86,6.9998]
[1728375167543,23.776884,142.93,142.84,17.62669]
[1728375167751,6.998,142.9,142.85,7.0001]
[1728375168643,6.9984,142.89,142.85,7.0001]
[1728375170856,15.0757,142.96,142.88,6.9988]
[1728375171026,6.996,142.94,142.89,6.9979]
[1728375171355,6.996,142.94,142.89,22.2525]
[1728375171539,6.996,142.94,142.9,1.39921197]
[1728375172130,6.996,142.94,142.9,8.39671197]
[1728375172325,6.996,142.94,142.9,6.9975]
[1728375172531,23.776884,142.96,142.89,22.2525]
[1728375172857,6.9964,142.93,142.89,29.2507]
[1728375173526,23.776884,142.96,142.89,29.2507]
[1728375173851,6.996,142.94,142.89,29.2507]
[1728375176029,6.9953,142.96,142.91,6.997]
[1728375176249,6.9954,142.95,142.92,1.3991327]
[1728375177243,6.9954,142.95,142.91,6.997]
[1728375177746,6.9954,142.95,142.92,1.3991333]
[1728375178836,6.9954,142.95,142.91,6.997]
[1728375179538,6.9954,142.95,142.92,1.39909331]
[1728375179838,6.9961,142.94,142.9,24.4912]
[1728375181057,7.26691018,142.98,142.91,1.39914501]
[1728375181348,6.9953,142.96,142.92,6.9969]
[1728375181553,6.9953,142.96,142.93,1.39899435]
[1728375181767,6.9947,142.97,142.93,8.39529435]
[1728375182265,6.995,142.96,142.92,24.4887]
[1728375183854,6.996,142.94,142.9,6.9978]
[1728375184359,6.9955,142.95,142.9,6.9978]
[1728375184853,6.995,142.96,142.92,6.9968]
[1728375185038,6.9946,142.97,142.93,1.39899521]
[1728375185743,17.4843,142.99,142.91,17.4931]
[1728375185941,17.4843,142.99,142.88,50.0]
[1728375185942,6.9969,142.92,142.88,24.4952]
[1728375186252,6.9965,142.93,142.88,24.4952]
[1728375187259,23.776884,142.94,142.87,21.7422]
[1728375187434,6.9975,142.91,142.87,28.7414]
[1728375188145,15.2893,142.93,142.87,6.9992]
[1728375188359,15.2893,142.93,142.86,6.9998]
[1728375188663,0.12549,142.96,142.85,30.67977801]
[1728375188838,59.317164,142.97,142.85,30.67977801]
[1728375189039,61.43057135,142.97,142.88,6.9987]
[1728375189733,61.17959135,142.97,142.88,6.9987]
[1728375189935,61.17959135,142.97,142.89,6.9983]
[1728375190464,0.12549,142.96,142.85,6.9999]
[1728375190650,23.776884,142.95,142.84,3.87155932]
[1728375190848,23.776884,142.93,142.84,3.87155932]
[1728375191736,6.9983,142.9,142.85,7.12579]
[1728375192142,6.9983,142.9,142.85,7.0003]
[1728375193165,0.12549,142.89,142.84,3.87155932]
[1728375193337,23.776884,142.9,142.8,18.350957]
[1728375193338,6.9999,142.86,142.82,7.0018]
[1728375193848,6.9999,142.86,142.81,10.87914576]
[1728375194442,6.9999,142.86,142.82,10.57228305]
[1728375194650,6.9999,142.86,142.83,5.01760199]
[1728375194851,6.9999,142.86,142.82,5.55468106]
[1728375195246,23.776884,142.9,142.82,5.55468106]
[1728375195558,7.0013,142.83,142.8,0.844657]
[1728375196945,23.776884,142.87,142.8,0.844657]
[1728375196946,7.0009,142.84,142.81,1.40016406]
[1728375197144,7.002,142.82,142.8,0.844657]
[1728375197464,23.776884,142.85,142.8,0.844657]
[1728375198868,7.0017,142.83,142.8,0.844657]
[1728375199243,7.0023,142.81,142.8,0.844657]
[1728375199846,7.0019,142.82,142.8,0.844657]
[1728375201174,16.1228,142.85,142.8,0.844657]
[1728375201469,7.0014,142.83,142.8,0.844657]